[Event "Titled Tuesday Blitz April 05 Early 2022"]
[White "Garriga Cazorla, Pere"]
[Black "Melikhov, Evgeny V."]
[WhiteFideId "32011601"]
[BlackFideId "4122046"]
[WhiteElo "2713"]
[BlackElo "2338"]
[Result "1-0"]
[Round "02"]
[TimeControl "180+1"]
[Date "2022.04.05"]
[WhiteClock "0:00:17"]
[BlackClock "0:00:10"]

1. d4 {[%clk 0:03:00]}  Nf6 {[%clk 0:02:59]} 2. c4 {[%clk 0:03:00]}  e6 {[%clk 0:02:59]} 3. Nc3 {[%clk 0:03:01]}  Bb4 {[%clk 0:02:59]} 4. e3 {[%clk 0:02:56]}  b6 {[%clk 0:02:58]} 5. Bd3 {[%clk 0:02:56]}  Bb7 {[%clk 0:02:57]} 6. Ne2 {[%clk 0:02:56]}  Be4 {[%clk 0:02:47]} 7. O-O {[%clk 0:02:50]}  Bxd3 {[%clk 0:02:45]} 8. Qxd3 {[%clk 0:02:51]}  Bxc3 {[%clk 0:02:30]} 9. Nxc3 {[%clk 0:02:45]}  d5 {[%clk 0:02:24]} 10. cxd5 {[%clk 0:02:32]}  exd5 {[%clk 0:02:24]} 11. e4 {[%clk 0:02:20]}  dxe4 {[%clk 0:02:01]} 12. Nxe4 {[%clk 0:02:21]}  Nd5 {[%clk 0:01:54]} 13. Ng5 {[%clk 0:02:03]}  Nc6 {[%clk 0:01:41]} 14. Qb5 {[%clk 0:01:29]}  Ne7 {[%clk 0:01:30]} 15. Re1 {[%clk 0:01:20]}  O-O {[%clk 0:01:28]} 16. Qd3 {[%clk 0:01:21]}  Ng6 {[%clk 0:01:21]} 17. Be3 {[%clk 0:01:05]}  Qd5 {[%clk 0:01:17]} 18. Rac1 {[%clk 0:01:02]}  Rad8 {[%clk 0:01:15]} 19. Red1 {[%clk 0:00:56]}  Rd7 {[%clk 0:01:14]} 20. a3 {[%clk 0:00:50]}  Rfd8 {[%clk 0:01:11]} 21. Qc2 {[%clk 0:00:47]}  Nce7 {[%clk 0:01:02]} 22. Ne4 {[%clk 0:00:39]}  Nf5 {[%clk 0:00:39]} 23. Nc3 {[%clk 0:00:38]}  Nxe3 {[%clk 0:00:38]} 24. fxe3 {[%clk 0:00:35]}  Qg5 {[%clk 0:00:37]} 25. Re1 {[%clk 0:00:33]}  c5 {[%clk 0:00:35]} 26. d5 {[%clk 0:00:27]}  Ne5 {[%clk 0:00:34]} 27. Qe2 {[%clk 0:00:24]}  Rd6 {[%clk 0:00:33]} 28. Rf1 {[%clk 0:00:23]}  Rg6 {[%clk 0:00:31]} 29. Rce1 {[%clk 0:00:22]}  c4 {[%clk 0:00:28]} 30. e4 {[%clk 0:00:22]}  Nd3 {[%clk 0:00:27]} 31. g3 {[%clk 0:00:22]}  Nxe1 {[%clk 0:00:26]} 32. Rxe1 {[%clk 0:00:20]}  Qe5 {[%clk 0:00:26]} 33. Qxc4 {[%clk 0:00:19]}  h5 {[%clk 0:00:23]} 34. Re3 {[%clk 0:00:14]}  h4 {[%clk 0:00:23]} 35. Kf2 {[%clk 0:00:15]}  hxg3+ {[%clk 0:00:23]} 36. hxg3 {[%clk 0:00:15]}  Rf6+ {[%clk 0:00:23]} 37. Kg2 {[%clk 0:00:15]}  Qh5 {[%clk 0:00:19]} 38. Qe2 {[%clk 0:00:15]}  Qxe2+ {[%clk 0:00:18]} 39. Rxe2 {[%clk 0:00:16]}  a6 {[%clk 0:00:18]} 40. e5 {[%clk 0:00:16]}  Rf5 {[%clk 0:00:18]} 41. g4 {[%clk 0:00:16]}  Rg5 {[%clk 0:00:17]} 42. Kg3 {[%clk 0:00:17]}  f6 {[%clk 0:00:15]} 43. e6 {[%clk 0:00:15]}  Kf8 {[%clk 0:00:12]} 44. e7+ {[%clk 0:00:15]}  Ke8 {[%clk 0:00:13]} 45. exd8=Q+ {[%clk 0:00:15]}  Kxd8 {[%clk 0:00:14]} 46. Re6 {[%clk 0:00:15]}  b5 {[%clk 0:00:13]} 47. Kf4 {[%clk 0:00:15]}  a5 {[%clk 0:00:12]} 48. Rb6 {[%clk 0:00:14]}  b4 {[%clk 0:00:12]} 49. axb4 {[%clk 0:00:15]}  axb4 {[%clk 0:00:12]} 50. Rb8+ {[%clk 0:00:15]}  Kc7 {[%clk 0:00:12]} 51. Rxb4 {[%clk 0:00:16]}  Re5 {[%clk 0:00:12]} 52. Rc4+ {[%clk 0:00:16]}  Kd6 {[%clk 0:00:12]} 53. Rc6+ {[%clk 0:00:16]}  Kd7 {[%clk 0:00:11]} 54. b4 {[%clk 0:00:17]}  Re1 {[%clk 0:00:11]} 55. b5 {[%clk 0:00:17]}  Rf1+ {[%clk 0:00:11]} 56. Ke3 {[%clk 0:00:18]}  Rg1 {[%clk 0:00:11]} 57. b6 {[%clk 0:00:18]}  Rxg4 {[%clk 0:00:11]} 58. Ne4 {[%clk 0:00:19]}  Rg1 {[%clk 0:00:10]} 59. b7 {[%clk 0:00:18]}  Rb1 {[%clk 0:00:10]} 60. Nc5+ {[%clk 0:00:18]}  Kd8 {[%clk 0:00:10]} 61. d6 {[%clk 0:00:17]} 1-0


[Site "https://www.chess.com"]

[Event "Titled Tuesday Blitz April 05 Early 2022"]
[White "Goldin, Roman"]
[Black "Hnydiuk, Aleksander"]
[WhiteFideId "2803860"]
[BlackFideId "1109057"]
[WhiteElo "2312"]
[BlackElo "2374"]
[Result "0-1"]
[Round "02"]
[TimeControl "180+1"]
[Date "2022.04.05"]
[WhiteClock "0:00:02"]
[BlackClock "0:00:14"]

1. e4 {[%clk 0:02:55]}  Nf6 {[%clk 0:03:00]} 2. e5 {[%clk 0:02:54]}  Nd5 {[%clk 0:03:00]} 3. c4 {[%clk 0:02:54]}  Nb6 {[%clk 0:02:59]} 4. c5 {[%clk 0:02:55]}  Nd5 {[%clk 0:03:00]} 5. Bc4 {[%clk 0:02:55]}  e6 {[%clk 0:02:57]} 6. d4 {[%clk 0:02:56]}  d6 {[%clk 0:02:57]} 7. cxd6 {[%clk 0:02:56]}  cxd6 {[%clk 0:02:58]} 8. Nf3 {[%clk 0:02:56]}  Be7 {[%clk 0:02:55]} 9. O-O {[%clk 0:02:54]}  O-O {[%clk 0:02:55]} 10. Qe2 {[%clk 0:02:54]}  b6 {[%clk 0:02:43]} 11. a3 {[%clk 0:02:50]}  a5 {[%clk 0:02:38]} 12. Nc3 {[%clk 0:02:46]}  Nxc3 {[%clk 0:02:36]} 13. bxc3 {[%clk 0:02:46]}  Ba6 {[%clk 0:02:36]} 14. Bxa6 {[%clk 0:02:43]}  Nxa6 {[%clk 0:02:36]} 15. d5 {[%clk 0:02:39]}  dxe5 {[%clk 0:02:27]} 16. dxe6 {[%clk 0:02:35]}  f6 {[%clk 0:02:24]} 17. Rd1 {[%clk 0:02:33]}  Qe8 {[%clk 0:02:24]} 18. Be3 {[%clk 0:02:15]}  Bc5 {[%clk 0:02:16]} 19. Bxc5 {[%clk 0:01:48]}  Nxc5 {[%clk 0:02:17]} 20. Rab1 {[%clk 0:01:48]}  Qxe6 {[%clk 0:02:16]} 21. Rb5 {[%clk 0:01:29]}  Rad8 {[%clk 0:02:11]} 22. Rxd8 {[%clk 0:01:11]}  Rxd8 {[%clk 0:02:12]} 23. h3 {[%clk 0:01:10]}  Rd6 {[%clk 0:02:10]} 24. Nd2 {[%clk 0:01:04]}  Nd3 {[%clk 0:01:45]} 25. Qe4 {[%clk 0:00:55]}  Nxf2 {[%clk 0:01:19]} 26. Qc4 {[%clk 0:00:18]}  Nd3 {[%clk 0:01:11]} 27. Qxe6+ {[%clk 0:00:15]}  Rxe6 {[%clk 0:01:12]} 28. Nc4 {[%clk 0:00:15]}  e4 {[%clk 0:01:08]} 29. Rxb6 {[%clk 0:00:12]}  Rxb6 {[%clk 0:01:03]} 30. Nxb6 {[%clk 0:00:12]}  Ne5 {[%clk 0:01:00]} 31. Kf2 {[%clk 0:00:09]}  Kf7 {[%clk 0:00:57]} 32. Ke3 {[%clk 0:00:09]}  f5 {[%clk 0:00:57]} 33. Kd4 {[%clk 0:00:05]}  Ke6 {[%clk 0:00:56]} 34. Nd5 {[%clk 0:00:02]}  Kd6 {[%clk 0:00:44]} 35. c4 {[%clk 0:00:01]}  Nc6+ {[%clk 0:00:43]} 36. Kc3 {[%clk 0:00:01]}  Ke5 {[%clk 0:00:36]} 37. Ne3 {[%clk 0:00:01]}  f4 {[%clk 0:00:34]} 38. Nc2 {[%clk 0:00:02]}  g5 {[%clk 0:00:32]} 39. Ne1 {[%clk 0:00:03]}  h5 {[%clk 0:00:31]} 40. Nc2 {[%clk 0:00:03]}  g4 {[%clk 0:00:31]} 41. a4 {[%clk 0:00:03]}  gxh3 {[%clk 0:00:30]} 42. gxh3 {[%clk 0:00:03]}  e3 {[%clk 0:00:27]} 43. Kd3 {[%clk 0:00:03]}  Kd6 {[%clk 0:00:23]} 44. Ke4 {[%clk 0:00:03]}  e2 {[%clk 0:00:19]} 45. Kxf4 {[%clk 0:00:03]}  Nd4 {[%clk 0:00:13]} 46. Ne1 {[%clk 0:00:03]}  Kc5 {[%clk 0:00:13]} 47. Ke3 {[%clk 0:00:04]}  Kxc4 {[%clk 0:00:14]} 48. h4 {[%clk 0:00:03]}  Kc3 {[%clk 0:00:13]} 49. Kf2 {[%clk 0:00:03]}  Kd2 {[%clk 0:00:13]} 50. Ng2 {[%clk 0:00:03]}  Nc2 {[%clk 0:00:13]} 51. Kf3 {[%clk 0:00:01]}  Ne1+ {[%clk 0:00:13]} 52. Nxe1 {[%clk 0:00:01]}  Kxe1 {[%clk 0:00:14]} 53. Kf4 {[%clk 0:00:02]}  Kf1 {[%clk 0:00:14]} 0-1


[Site "https://www.chess.com"]

[Event "Titled Tuesday Blitz April 05 Early 2022"]
[White "Gunina, Valentina"]
[Black "Yushko, Olga"]
[WhiteFideId "4167570"]
[BlackFideId "14114500"]
[WhiteElo "2381"]
[BlackElo "2028"]
[Result "1-0"]
[Round "02"]
[TimeControl "180+1"]
[Date "2022.04.05"]
[WhiteClock "0:01:48"]
[BlackClock "0:00:12"]

1. d4 {[%clk 0:03:00]}  e6 {[%clk 0:02:59]} 2. c4 {[%clk 0:02:59]}  f5 {[%clk 0:02:59]} 3. Nf3 {[%clk 0:02:58]}  Nf6 {[%clk 0:02:59]} 4. Nc3 {[%clk 0:02:58]}  d6 {[%clk 0:02:59]} 5. g3 {[%clk 0:02:57]}  Be7 {[%clk 0:02:59]} 6. Bg2 {[%clk 0:02:58]}  O-O {[%clk 0:03:00]} 7. O-O {[%clk 0:02:58]}  Qe8 {[%clk 0:03:00]} 8. b4 {[%clk 0:02:57]}  a5 {[%clk 0:03:00]} 9. bxa5 {[%clk 0:02:56]}  Nc6 {[%clk 0:02:59]} 10. d5 {[%clk 0:02:55]}  Nd8 {[%clk 0:02:59]} 11. Nb5 {[%clk 0:02:43]}  Qd7 {[%clk 0:02:53]} 12. Nfd4 {[%clk 0:02:39]}  e5 {[%clk 0:02:30]} 13. Nb3 {[%clk 0:02:39]}  c6 {[%clk 0:02:26]} 14. Nc3 {[%clk 0:02:39]}  Kh8 {[%clk 0:02:17]} 15. Na4 {[%clk 0:02:36]}  Qe8 {[%clk 0:02:09]} 16. Nb6 {[%clk 0:02:36]}  Ra6 {[%clk 0:02:09]} 17. Nxc8 {[%clk 0:02:35]}  cxd5 {[%clk 0:02:01]} 18. cxd5 {[%clk 0:02:32]}  e4 {[%clk 0:02:00]} 19. Nxe7 {[%clk 0:02:32]}  Qxe7 {[%clk 0:02:00]} 20. e3 {[%clk 0:02:08]}  Qf7 {[%clk 0:01:54]} 21. Bb2 {[%clk 0:02:07]}  Nxd5 {[%clk 0:01:53]} 22. Qd4 {[%clk 0:02:07]}  Nc6 {[%clk 0:01:50]} 23. Qd2 {[%clk 0:02:04]}  Ncb4 {[%clk 0:01:28]} 24. f3 {[%clk 0:02:03]}  exf3 {[%clk 0:00:46]} 25. Bxf3 {[%clk 0:02:03]}  Qe6 {[%clk 0:00:45]} 26. e4 {[%clk 0:01:59]}  fxe4 {[%clk 0:00:35]} 27. Bxe4 {[%clk 0:01:59]}  Re8 {[%clk 0:00:25]} 28. Rae1 {[%clk 0:01:58]}  Qg8 {[%clk 0:00:18]} 29. a3 {[%clk 0:01:55]}  Nf6 {[%clk 0:00:16]} 30. Rxf6 {[%clk 0:01:52]}  Qxb3 {[%clk 0:00:14]} 31. axb4 {[%clk 0:01:50]}  gxf6 {[%clk 0:00:14]} 32. Bxf6+ {[%clk 0:01:49]}  Kg8 {[%clk 0:00:14]} 33. Qg5+ {[%clk 0:01:49]}  Kf7 {[%clk 0:00:13]} 34. Bd5+ {[%clk 0:01:48]}  Qxd5 {[%clk 0:00:12]} 35. Qg7# {[%clk 0:01:48]} 1-0


[Site "https://www.chess.com"]

[Event "Titled Tuesday Blitz April 05 Early 2022"]
[White "Guz, Ari"]
[Black "Hansen, Eric"]
[WhiteFideId "2825759"]
[BlackFideId "2606771"]
[WhiteElo "1913"]
[BlackElo "2568"]
[Result "1/2-1/2"]
[Round "02"]
[TimeControl "180+1"]
[Date "2022.04.05"]
[WhiteClock "0:00:05"]
[BlackClock "0:00:07"]

1. e4 {[%clk 0:03:00]}  c5 {[%clk 0:02:57]} 2. Nf3 {[%clk 0:03:01]}  e6 {[%clk 0:02:56]} 3. c3 {[%clk 0:03:00]}  Nf6 {[%clk 0:02:55]} 4. e5 {[%clk 0:03:01]}  Nd5 {[%clk 0:02:56]} 5. d4 {[%clk 0:03:01]}  cxd4 {[%clk 0:02:57]} 6. cxd4 {[%clk 0:03:02]}  d6 {[%clk 0:02:57]} 7. Bc4 {[%clk 0:02:56]}  Nc6 {[%clk 0:02:54]} 8. O-O {[%clk 0:02:55]}  Be7 {[%clk 0:02:46]} 9. exd6 {[%clk 0:02:49]}  Qxd6 {[%clk 0:02:45]} 10. Nc3 {[%clk 0:02:48]}  O-O {[%clk 0:02:45]} 11. Qe2 {[%clk 0:02:45]}  Nxc3 {[%clk 0:02:25]} 12. bxc3 {[%clk 0:02:43]}  b6 {[%clk 0:02:25]} 13. Bd3 {[%clk 0:02:20]}  Bb7 {[%clk 0:02:20]} 14. Bg5 {[%clk 0:02:07]}  h6 {[%clk 0:02:18]} 15. Bxe7 {[%clk 0:02:06]}  Nxe7 {[%clk 0:02:19]} 16. Ne5 {[%clk 0:02:04]}  Rac8 {[%clk 0:02:19]} 17. Rac1 {[%clk 0:02:04]}  Rc7 {[%clk 0:02:18]} 18. Rfd1 {[%clk 0:02:01]}  Rfc8 {[%clk 0:02:16]} 19. c4 {[%clk 0:02:01]}  Nc6 {[%clk 0:02:13]} 20. Nf3 {[%clk 0:01:42]}  Qf4 {[%clk 0:02:08]} 21. Be4 {[%clk 0:01:37]}  Nxd4 {[%clk 0:02:04]} 22. Nxd4 {[%clk 0:01:20]}  Qxe4 {[%clk 0:01:59]} 23. Qxe4 {[%clk 0:01:17]}  Bxe4 {[%clk 0:01:59]} 24. Nb5 {[%clk 0:01:17]}  Rxc4 {[%clk 0:01:59]} 25. Rxc4 {[%clk 0:01:14]}  Rxc4 {[%clk 0:02:00]} 26. Nxa7 {[%clk 0:01:14]}  Bd5 {[%clk 0:01:52]} 27. h3 {[%clk 0:01:07]}  Kf8 {[%clk 0:01:30]} 28. Rb1 {[%clk 0:01:04]}  Rc7 {[%clk 0:01:18]} 29. Nb5 {[%clk 0:00:55]}  Bxa2 {[%clk 0:01:10]} 30. Ra1 {[%clk 0:00:23]}  Rc5 {[%clk 0:01:06]} 31. Nd6 {[%clk 0:00:20]}  Rc2 {[%clk 0:01:00]} 32. Rd1 {[%clk 0:00:20]}  g5 {[%clk 0:00:55]} 33. Rd4 {[%clk 0:00:20]}  Rc5 {[%clk 0:00:48]} 34. Rb4 {[%clk 0:00:19]}  Rc6 {[%clk 0:00:47]} 35. Ne4 {[%clk 0:00:17]}  Ke7 {[%clk 0:00:43]} 36. Nd2 {[%clk 0:00:11]}  Bd5 {[%clk 0:00:41]} 37. h4 {[%clk 0:00:09]}  f6 {[%clk 0:00:39]} 38. Nf1 {[%clk 0:00:09]}  Kd6 {[%clk 0:00:38]} 39. Ne3 {[%clk 0:00:09]}  Kc5 {[%clk 0:00:37]} 40. Rb1 {[%clk 0:00:08]}  gxh4 {[%clk 0:00:33]} 41. Ng4 {[%clk 0:00:08]}  f5 {[%clk 0:00:32]} 42. Nxh6 {[%clk 0:00:08]}  b5 {[%clk 0:00:30]} 43. Nf7 {[%clk 0:00:08]}  b4 {[%clk 0:00:28]} 44. Ne5 {[%clk 0:00:08]}  Rb6 {[%clk 0:00:28]} 45. Nd7+ {[%clk 0:00:09]}  Kb5 {[%clk 0:00:16]} 46. Nxb6 {[%clk 0:00:09]}  Be4 {[%clk 0:00:16]} 47. Rb2 {[%clk 0:00:07]}  Kxb6 {[%clk 0:00:05]} 48. f3 {[%clk 0:00:07]}  Kc5 {[%clk 0:00:02]} 49. fxe4 {[%clk 0:00:08]}  fxe4 {[%clk 0:00:02]} 50. Kf2 {[%clk 0:00:08]}  Kc4 {[%clk 0:00:03]} 51. Ke3 {[%clk 0:00:07]}  Kc3 {[%clk 0:00:04]} 52. Rd2 {[%clk 0:00:07]}  b3 {[%clk 0:00:04]} 53. Rd7 {[%clk 0:00:06]}  b2 {[%clk 0:00:04]} 54. Rc7+ {[%clk 0:00:07]}  Kb3 {[%clk 0:00:05]} 55. Rb7+ {[%clk 0:00:07]}  Kc2 {[%clk 0:00:05]} 56. Rc7+ {[%clk 0:00:07]}  Kd1 {[%clk 0:00:06]} 57. Rd7+ {[%clk 0:00:06]}  Kc1 {[%clk 0:00:06]} 58. Rc7+ {[%clk 0:00:07]}  Kd1 {[%clk 0:00:07]} 59. Rd7+ {[%clk 0:00:04]}  Kc1 {[%clk 0:00:07]} 60. Rc7+ {[%clk 0:00:05]}  Kd1 {[%clk 0:00:07]} 1/2-1/2


[Site "https://www.chess.com"]

[Event "Titled Tuesday Blitz April 05 Early 2022"]
[White "Hamidi, Amir Mohammad"]
[Black "Buscar, Michael"]
[WhiteFideId "12563285"]
[BlackFideId "2603616"]
[WhiteElo "2273"]
[BlackElo "2010"]
[Result "1/2-1/2"]
[Round "02"]
[TimeControl "180+1"]
[Date "2022.04.05"]
[WhiteClock "0:00:03"]
[BlackClock "0:00:07"]

1. e4 {[%clk 0:03:00]}  c5 {[%clk 0:02:57]} 2. Nf3 {[%clk 0:03:00]}  Nc6 {[%clk 0:02:56]} 3. Bb5 {[%clk 0:03:01]}  Nf6 {[%clk 0:02:49]} 4. e5 {[%clk 0:02:55]}  Nd5 {[%clk 0:02:47]} 5. Nc3 {[%clk 0:02:54]}  Nc7 {[%clk 0:02:46]} 6. Bxc6 {[%clk 0:02:52]}  bxc6 {[%clk 0:02:46]} 7. O-O {[%clk 0:02:52]}  g6 {[%clk 0:02:44]} 8. Ne4 {[%clk 0:02:46]}  Ne6 {[%clk 0:02:43]} 9. b3 {[%clk 0:02:44]}  Bg7 {[%clk 0:02:42]} 10. Re1 {[%clk 0:02:32]}  O-O {[%clk 0:02:28]} 11. Rb1 {[%clk 0:02:29]}  a5 {[%clk 0:02:15]} 12. a4 {[%clk 0:02:24]}  d5 {[%clk 0:02:05]} 13. exd6 {[%clk 0:02:23]}  exd6 {[%clk 0:02:05]} 14. Bb2 {[%clk 0:02:24]}  Nd4 {[%clk 0:02:01]} 15. Nxd4 {[%clk 0:02:11]}  cxd4 {[%clk 0:02:00]} 16. Qf3 {[%clk 0:02:11]}  Bf5 {[%clk 0:01:52]} 17. d3 {[%clk 0:02:08]}  c5 {[%clk 0:01:42]} 18. Re2 {[%clk 0:01:58]}  Qd7 {[%clk 0:01:39]} 19. h3 {[%clk 0:01:58]}  Rac8 {[%clk 0:01:32]} 20. Rbe1 {[%clk 0:01:58]}  d5 {[%clk 0:01:23]} 21. Ng3 {[%clk 0:01:57]}  Be6 {[%clk 0:01:23]} 22. Qf4 {[%clk 0:01:49]}  Qa7 {[%clk 0:01:14]} 23. h4 {[%clk 0:01:09]}  c4 {[%clk 0:01:09]} 24. Ba3 {[%clk 0:01:09]}  Rfd8 {[%clk 0:01:01]} 25. h5 {[%clk 0:01:07]}  cxb3 {[%clk 0:00:58]} 26. cxb3 {[%clk 0:01:07]}  Rc3 {[%clk 0:00:58]} 27. hxg6 {[%clk 0:00:49]}  hxg6 {[%clk 0:00:57]} 28. Qg5 {[%clk 0:00:49]}  Qd7 {[%clk 0:00:44]} 29. Be7 {[%clk 0:00:44]}  Rb8 {[%clk 0:00:31]} 30. Bf6 {[%clk 0:00:45]}  Rcxb3 {[%clk 0:00:20]} 31. Bxg7 {[%clk 0:00:44]}  Kxg7 {[%clk 0:00:21]} 32. Qe5+ {[%clk 0:00:43]}  Kg8 {[%clk 0:00:20]} 33. Qxd4 {[%clk 0:00:43]}  R3b4 {[%clk 0:00:17]} 34. Qe5 {[%clk 0:00:42]}  Qxa4 {[%clk 0:00:15]} 35. Qf6 {[%clk 0:00:38]}  Qd7 {[%clk 0:00:12]} 36. Rxe6 {[%clk 0:00:18]}  fxe6 {[%clk 0:00:11]} 37. Qxg6+ {[%clk 0:00:18]}  Qg7 {[%clk 0:00:12]} 38. Qxe6+ {[%clk 0:00:18]}  Qf7 {[%clk 0:00:09]} 39. Qd6 {[%clk 0:00:18]}  Rb1 {[%clk 0:00:08]} 40. Rf1 {[%clk 0:00:14]}  Rxf1+ {[%clk 0:00:08]} 41. Nxf1 {[%clk 0:00:14]}  Rf8 {[%clk 0:00:06]} 42. Qg3+ {[%clk 0:00:13]}  Qg7 {[%clk 0:00:06]} 43. Qd6 {[%clk 0:00:12]}  Qd4 {[%clk 0:00:02]} 44. Qg6+ {[%clk 0:00:11]}  Qg7 {[%clk 0:00:02]} 45. Qd6 {[%clk 0:00:09]}  Qf7 {[%clk 0:00:03]} 46. Qc5 {[%clk 0:00:07]}  a4 {[%clk 0:00:02]} 47. f3 {[%clk 0:00:05]}  a3 {[%clk 0:00:03]} 48. Qxa3 {[%clk 0:00:05]}  Qf4 {[%clk 0:00:02]} 49. Qc5 {[%clk 0:00:05]}  Qf5 {[%clk 0:00:02]} 50. Ne3 {[%clk 0:00:05]}  Qxd3 {[%clk 0:00:02]} 51. Qxd5+ {[%clk 0:00:05]}  Qxd5 {[%clk 0:00:03]} 52. Nxd5 {[%clk 0:00:06]}  Kf7 {[%clk 0:00:03]} 53. Kf2 {[%clk 0:00:06]}  Rd8 {[%clk 0:00:04]} 54. Ne3 {[%clk 0:00:07]}  Rd2+ {[%clk 0:00:04]} 55. Kg3 {[%clk 0:00:07]}  Kg6 {[%clk 0:00:04]} 56. Kf4 {[%clk 0:00:08]}  Ra2 {[%clk 0:00:04]} 57. g4 {[%clk 0:00:08]}  Ra4+ {[%clk 0:00:05]} 58. Kg3 {[%clk 0:00:09]}  Ra3 {[%clk 0:00:05]} 59. Ng2 {[%clk 0:00:09]}  Kf6 {[%clk 0:00:04]} 60. Nf4 {[%clk 0:00:10]}  Ra4 {[%clk 0:00:04]} 61. Nh3 {[%clk 0:00:10]}  Ra3 {[%clk 0:00:05]} 62. Ng1 {[%clk 0:00:09]}  Kg6 {[%clk 0:00:05]} 63. Kh4 {[%clk 0:00:08]}  Kf6 {[%clk 0:00:05]} 64. f4 {[%clk 0:00:08]}  Rb3 {[%clk 0:00:05]} 65. Ne2 {[%clk 0:00:08]}  Re3 {[%clk 0:00:04]} 66. Ng3 {[%clk 0:00:07]}  Rf3 {[%clk 0:00:04]} 67. Nh5+ {[%clk 0:00:05]}  Kg6 {[%clk 0:00:05]} 68. f5+ {[%clk 0:00:03]}  Kf7 {[%clk 0:00:04]} 69. Kg5 {[%clk 0:00:03]}  Rf1 {[%clk 0:00:05]} 70. Nf4 {[%clk 0:00:04]}  Ra1 {[%clk 0:00:04]} 71. Nd3 {[%clk 0:00:04]}  Ra5 {[%clk 0:00:04]} 72. Kf4 {[%clk 0:00:03]}  Kf6 {[%clk 0:00:04]} 73. g5+ {[%clk 0:00:03]}  Kf7 {[%clk 0:00:04]} 74. Kg4 {[%clk 0:00:04]}  Ra3 {[%clk 0:00:04]} 75. Ne5+ {[%clk 0:00:03]}  Kg7 {[%clk 0:00:05]} 76. f6+ {[%clk 0:00:04]}  Kg8 {[%clk 0:00:05]} 77. Kf5 {[%clk 0:00:04]}  Ra5 {[%clk 0:00:05]} 78. g6 {[%clk 0:00:05]}  Kf8 {[%clk 0:00:05]} 79. Ke6 {[%clk 0:00:02]}  Ra6+ {[%clk 0:00:05]} 80. Kf5 {[%clk 0:00:03]}  Ra1 {[%clk 0:00:06]} 81. Nd7+ {[%clk 0:00:02]}  Ke8 {[%clk 0:00:06]} 82. f7+ {[%clk 0:00:03]}  Kxd7 {[%clk 0:00:06]} 83. Kf6 {[%clk 0:00:03]}  Rf1+ {[%clk 0:00:06]} 84. Kg7 {[%clk 0:00:03]}  Ke7 {[%clk 0:00:07]} 85. Kg8 {[%clk 0:00:04]}  Rf6 {[%clk 0:00:07]} 86. Kg7 {[%clk 0:00:03]}  Rxg6+ {[%clk 0:00:06]} 87. Kxg6 {[%clk 0:00:03]}  Kf8 {[%clk 0:00:07]} 88. Kf6 {[%clk 0:00:03]} 1/2-1/2


[Site "https://www.chess.com"]

[Event "Titled Tuesday Blitz April 05 Early 2022"]
[White "Hoffmann, Asa"]
[Black "Seemann, Jakub"]
[WhiteFideId "2001470"]
[BlackFideId "21874697"]
[WhiteElo "2117"]
[BlackElo "2003"]
[Result "0-1"]
[Round "02"]
[TimeControl "180+1"]
[Date "2022.04.05"]
[WhiteClock "0:00:05"]
[BlackClock "0:01:36"]

1. d4 {[%clk 0:02:57]}  g6 {[%clk 0:02:58]} 2. e4 {[%clk 0:02:56]}  Bg7 {[%clk 0:02:58]} 3. Be3 {[%clk 0:02:56]}  d6 {[%clk 0:02:59]} 4. Qd2 {[%clk 0:02:56]}  Nf6 {[%clk 0:02:58]} 5. f3 {[%clk 0:02:56]}  c6 {[%clk 0:02:58]} 6. Nc3 {[%clk 0:02:56]}  b5 {[%clk 0:02:59]} 7. O-O-O {[%clk 0:02:55]}  Qa5 {[%clk 0:02:58]} 8. Kb1 {[%clk 0:02:54]}  Nbd7 {[%clk 0:02:58]} 9. a3 {[%clk 0:02:50]}  Bb7 {[%clk 0:02:56]} 10. Nge2 {[%clk 0:02:48]}  Qc7 {[%clk 0:02:54]} 11. Nc1 {[%clk 0:02:41]}  a5 {[%clk 0:02:54]} 12. Nd3 {[%clk 0:02:33]}  b4 {[%clk 0:02:51]} 13. axb4 {[%clk 0:02:31]}  axb4 {[%clk 0:02:51]} 14. Nxb4 {[%clk 0:02:31]}  Qa5 {[%clk 0:02:52]} 15. Nba2 {[%clk 0:02:25]}  O-O {[%clk 0:02:51]} 16. Bh6 {[%clk 0:02:17]}  Rfb8 {[%clk 0:02:49]} 17. Bxg7 {[%clk 0:02:15]}  Kxg7 {[%clk 0:02:50]} 18. Bc4 {[%clk 0:02:14]}  Nb6 {[%clk 0:02:47]} 19. Bb3 {[%clk 0:02:14]}  Ba6 {[%clk 0:02:46]} 20. e5 {[%clk 0:02:13]}  dxe5 {[%clk 0:02:43]} 21. dxe5 {[%clk 0:02:08]}  Qxe5 {[%clk 0:02:44]} 22. Qd4 {[%clk 0:02:04]}  Qxd4 {[%clk 0:02:43]} 23. Rxd4 {[%clk 0:02:04]}  c5 {[%clk 0:02:44]} 24. Rd2 {[%clk 0:01:54]}  Bc8 {[%clk 0:02:26]} 25. Nc1 {[%clk 0:01:32]}  c4 {[%clk 0:02:24]} 26. Ba2 {[%clk 0:01:32]}  Be6 {[%clk 0:02:19]} 27. Re1 {[%clk 0:01:31]}  Nfd5 {[%clk 0:02:17]} 28. Ne4 {[%clk 0:01:12]}  c3 {[%clk 0:02:15]} 29. Rxd5 {[%clk 0:01:01]}  Nxd5 {[%clk 0:02:11]} 30. Bb3 {[%clk 0:00:50]}  cxb2 {[%clk 0:02:01]} 31. Kxb2 {[%clk 0:00:50]}  Nc7 {[%clk 0:02:01]} 32. Nc5 {[%clk 0:00:48]}  Bxb3 {[%clk 0:01:59]} 33. N1xb3 {[%clk 0:00:40]}  e6 {[%clk 0:01:58]} 34. c4 {[%clk 0:00:39]}  Rb4 {[%clk 0:01:52]} 35. Kc3 {[%clk 0:00:38]}  Rab8 {[%clk 0:01:52]} 36. Rd1 {[%clk 0:00:33]}  Na6 {[%clk 0:01:48]} 37. Rd7 {[%clk 0:00:29]}  Rxb3+ {[%clk 0:01:47]} 38. Nxb3 {[%clk 0:00:26]}  Rxb3+ {[%clk 0:01:48]} 39. Kxb3 {[%clk 0:00:21]}  Nc5+ {[%clk 0:01:48]} 40. Kb4 {[%clk 0:00:21]}  Nxd7 {[%clk 0:01:49]} 41. Kb5 {[%clk 0:00:20]}  Kf6 {[%clk 0:01:49]} 42. c5 {[%clk 0:00:20]}  Ke7 {[%clk 0:01:50]} 43. c6 {[%clk 0:00:20]}  Ne5 {[%clk 0:01:50]} 44. Kb6 {[%clk 0:00:18]}  Nc4+ {[%clk 0:01:40]} 45. Kb7 {[%clk 0:00:16]}  f5 {[%clk 0:01:35]} 46. c7 {[%clk 0:00:14]}  Nd6+ {[%clk 0:01:36]} 47. Kc6 {[%clk 0:00:11]}  e5 {[%clk 0:01:33]} 48. Kd5 {[%clk 0:00:10]}  e4 {[%clk 0:01:33]} 49. fxe4 {[%clk 0:00:09]}  fxe4 {[%clk 0:01:34]} 50. c8=N+ {[%clk 0:00:06]}  Nxc8 {[%clk 0:01:33]} 51. Kxe4 {[%clk 0:00:06]}  Kf6 {[%clk 0:01:34]} 52. Kf4 {[%clk 0:00:06]}  Ne7 {[%clk 0:01:35]} 53. h4 {[%clk 0:00:06]}  h6 {[%clk 0:01:35]} 54. g4 {[%clk 0:00:06]}  g5+ {[%clk 0:01:35]} 55. hxg5+ {[%clk 0:00:05]}  hxg5+ {[%clk 0:01:36]} 0-1


[Site "https://www.chess.com"]